Cogmind - Beta 13 @@@ ROGUE MODE // 2024.05.03 @ 16:54:32 Player: sercli123 Result: Self-destructed Performance ------------- Evolutions (1) 500 Regions Visited (2) 400 Robots Destroyed (19) 95 Value Destroyed (391) 391 Prototype IDs (2) 40 Alien Tech Used (0) 0 Bonus (0) 0 TOTAL SCORE: 1426 Bonus ------- None Cogmind --------- Core Integrity 265/400 Matter 52/300 Energy 450/450 System Corruption 3% Temperature Cool (69) Movement Walking (260) Ox2 Location -9/Materials Parts ------- > --- POWER (1) -------- Ion Engine > --- PROPULSION (2) --- Aluminum Leg > --- UTILITY (4) ------ Medium Storage Unit Large Battery > --- WEAPON (2) ------- Medium Laser Rocket Launcher > --- INVENTORY (10) --- Improved Treads Improved Treads Compact Wheel Heat Sink Small Storage Unit Signal Interpreter Core Shielding Power Shielding EM Pulse Gun Shotgun Peak State ------------ > --- POWER ------------ Light Ion Engine > --- PROPULSION ------- Improved Treads Improved Treads > --- UTILITY ---------- Medium Storage Unit Large Battery > --- WEAPON ----------- EM Pulse Gun Shotgun > --- INVENTORY -------- Ion Engine Aluminum Leg Compact Wheel Heat Sink Small Storage Unit Signal Interpreter Core Shielding Power Shielding Small Laser Grenade Launcher [Rating: 11] Favorites ----------- Power Light Ion Engine Engine Light Ion Engine Propulsion Compact Wheel Treads Improved Treads Leg Aluminum Leg Wheel Compact Wheel Utility Medium Storage Unit Storage Medium Storage Unit Weapon EM Pulse Gun Energy Gun EM Pulse Gun Ballistic Gun Assault Rifle Launcher Grenade Launcher Build | -11 -10 -9 ------- Run | Yrd Mat Mat Slots Evolved 2 | . . 2 Power . | . . . Propulsion . | . . . Utility 2 | . . 2 Weapon . | . . . Parts Attached 33 | 6 14 13 Power 4 | 1 1 2 Engine 4 | 1 1 2 Core . | . . . Reactor . | . . . Propulsion 15 | 2 6 7 Treads 4 | . 2 2 Leg 8 | . 4 4 Wheel 3 | 2 . 1 Hover . | . . . Flight . | . . . Utility 3 | 1 2 . Device . | . . . Storage 3 | 1 2 . Processor . | . . . Hackware . | . . . Protection . | . . . Artifact . | . . . Weapon 11 | 2 5 4 Energy Gun 5 | 1 2 2 Energy Cannon . | . . . Ballistic Gun 3 | 1 1 1 Ballistic Cannon . | . . . Launcher 3 | . 2 1 Special Weapon . | . . . Impact Weapon . | . . . Slashing Weapon . | . . . Piercing Weapon . | . . . Special Melee Weapon . | . . . Unidentified Prototypes . | . . . Corrupted Parts 1 | . . 1 System Corruption 3 | . . 3 Parts Lost 1 | . . 1 Power . | . . . Propulsion 1 | . . 1 Utility . | . . . Weapon . | . . . Highest Loss Streak 1 | . . 1 To Critical Strikes . | . . . Average Slot Usage (%) 77 | . 78 76 Engine 11 | . 11 10 Treads 4 | . 2 6 Leg 7 | . 2 15 Wheel 10 | . 18 . Storage 18 | . 16 22 Energy Gun 11 | . 11 11 Ballistic Gun 8 | . 9 7 Launcher 3 | . 4 2 Naked Turns . | . . . Heaviest Build 24 | 12 21 24 Greatest Support 46 | 32 46 46 Greatest Overweight (x) 6 | . 6 2 Average Overweight (x) . | . . . Largest Inventory Capacity 10 | 8 10 10 Average Capacity 9 | 7 8 10 Most Carried 10 | 5 10 10 Average Carried 7 | 2 6 9 Final Capacity 10 | 8 10 10 Final Carried 10 | 2 7 10 Class Distribution -------------------- 100% | Mutant Dominant Class ---------------- Mutant | -10/Materials Mutant | -9/Materials Resources | -11 -10 -9 ----------- Run | Yrd Mat Mat Matter Collected 541 | 232 119 190 Remotely . | . . . Salvage Created 679 | . 281 398 Parts 41 | . 24 17 Haulers Intercepted . | . . . Recyclers Shooed . | . . . Parts Field Recycled . | . . . Retrieved Matter . | . . . Parts Self-Destructed . | . . . Prevented . | . . . Kills | -11 -10 -9 ------- Run | Yrd Mat Mat Combat Hostiles Destroyed 12 | . 5 7 Guns 7 | . 1 6 AOE 5 | . 4 1 Classes Destroyed 7 | . 3 4 Worker 1 | . . 1 Builder 3 | . 3 . Recycler 2 | . . 2 Watcher 1 | . 1 . Swarmer 4 | . . 4 Grunt 6 | . 5 1 Sentry 2 | . . 2 Best Kill Streak 5 | . 5 4 Combat Bots Only 4 | . 2 4 Max Kills in Single Turn 3 | . 3 1 Gunslinging . | . . . Exploded 1 | . 1 1 Melee . | . . . Uniques/NPCs Destroyed . | . . . Combat | -11 -10 -9 -------- Run | Yrd Mat Mat Hostile Shots Fired 81 | . 18 63 Missed 25 | . 4 21 Damage Taken 731 | . 229 502 Core 235 | . 100 135 Absorbed by Shields . | . . . Core Remaining (%) 80 | 100 60 . Volleys Fired 48 | . 16 32 Largest 2 | . 2 2 Hottest 90 | . 70 90 Shots Fired 81 | . 31 50 Gun 67 | . 24 43 Cannon . | . . . Launcher 14 | . 7 7 Special . | . . . Kinetic 23 | . 13 10 Thermal 25 | . 3 22 Explosive 14 | . 7 7 Electromagnetic 19 | . 8 11 Robot Hit Streak 11 | . 7 11 Robot Miss Streak 4 | . 2 4 Penetration Max . | . . . Secondary Targets . | . . . Shots Hit Robots 46 | . 17 29 Core Hits 33 | . 18 15 Critical Kills . | . . . Critical Parts Destroyed . | . . . Critical Strikes 1 | . . 1 Burn 1 | . . 1 Melee Attacks . | . . . Impact . | . . . Slashing . | . . . Piercing . | . . . Sneak Attacks . | . . . Combat Hostiles . | . . . Follow-up Attacks . | . . . Damage Inflicted 1203 | . 586 617 Guns 512 | . 164 348 Cannons . | . . . Explosions 687 | . 418 269 Melee . | . . . Ramming 4 | . 4 . Kinetic 118 | . 86 32 Thermal 299 | . 83 216 Explosive 628 | . 359 269 Electromagnetic 154 | . 54 100 Impact . | . . . Slashing . | . . . Piercing . | . . . Highest Corruption 3 | . 2 3 Average Corruption 2 | . 2 3 Corruption Purged . | . . . Corruption Blocked . | . . . Effects 9 | . 2 7 Message Errors 3 | . 1 2 Matter Fused 6 | . 1 5 Overload Shots . | . . . Overflow Damage 37 | . 25 12 Projectiles . | . . . Explosions 37 | . 25 12 Melee . | . . . Knockbacks . | . . . Impact . | . . . Kinetic . | . . . Secondary . | . . . Self-Inflicted Damage 44 | . 43 1 Shots 3 | . 2 1 Rammed 1 | . 1 . Targets Rammed 1 | . 1 . Kicked . | . . . Crushed . | . . . Highest Temperature 102 | . 18 102 Average Temperature 26 | . 7 31 Received Heat Transfer 264 | . 105 159 Siege Activations . | . . . Robots Corrupted . | . . . Combat Hostiles . | . . . Parts Fried . | . . . Impact Corruptions . | . . . Robots Melted . | . . . Combat Hostiles . | . . . Parts Melted 2 | . . 2 Heat Transferred 903 | . 200 703 Parts Sabotaged . | . . . Parts Stolen . | . . . Parts Stripped . | . . . Power Chain Reactions 2 | . 2 . Alert | -11 -10 -9 ------- Run | Yrd Mat Mat Peak Influence 249 | . 235 249 Initial 18 | . . 18 Average 83 | . 76 101 Maximum Alert Level 1 | . 1 1 Low Security (%) 90 | 100 95 82 Level 1 9 | . 4 17 Level 2 . | . . . Level 3 . | . . . Level 4 . | . . . Level 5 . | . . . High Security . | . . . Max Security . | . . . Squads Dispatched 1 | . 1 . Investigation 1 | . 1 . Extermination . | . . . Reinforcement . | . . . Assault . | . . . Garrison . | . . . Intercept . | . . . Searches Triggered . | . . . Construction Impeded . | . . . Haulers Reinforced . | . . . Active Scanning Responses . | . . . Cargo Convoy Interrupts . | . . . Stealth | -11 -10 -9 --------- Run | Yrd Mat Mat Distress Signals 1 | . 1 . Communications Jammed . | . . . Distress Signals . | . . . Times Spotted 20 | . 9 11 Peak Tracking Total 4 | . 2 4 Tactical Retreats 1 | . . 1 Traps | -11 -10 -9 ------- Run | Yrd Mat Mat Traps Triggered 5 | . 5 . Indirectly . | . . . Trap Hack Attempts . | . . . Triggered . | . . . Disarmed . | . . . Reprogrammed . | . . . Reused . | . . . Traps Extracted . | . . . Installed . | . . . Triggered . | . . . Machines | -11 -10 -9 ---------- Run | Yrd Mat Mat Machines Disabled . | . . . Max in Single Turn . | . . . Machines Repaired . | . . . Machines Dismantled . | . . . Machines Sabotaged . | . . . Overloaded Fab Kills . | . . . Hacking | -11 -10 -9 --------- Run | Yrd Mat Mat Machines Accessed 3 | . 2 1 Terminals 3 | . 2 1 Fabricators . | . . . Repair Stations . | . . . Recycling Units . | . . . Scanalyzers . | . . . Garrison Access . | . . . Total Hacks 15 | . 11 4 Successful 6 | . 5 1 Failed 9 | . 6 3 Catastrophic 1 | . . 1 Database Lockouts . | . . . Manual 7 | . 4 3 Terminals 15 | . 11 4 Fabricators . | . . . Repair Stations . | . . . Recycling Units . | . . . Scanalyzers . | . . . Garrison Access . | . . . Terminal Hacks 6 | . 5 1 Record 1 | . 1 . Prototype ID Bank 1 | . 1 . Level Access Points 1 | . 1 . Branch Access Points 1 | . 1 . Emergency Access Points 1 | . 1 . Alert Level 1 | . . 1 Fabricator Hacks . | . . . Repair Station Hacks . | . . . Recycling Unit Hacks . | . . . Scanalyzer . | . . . Garrison Access Hacks . | . . . Unauthorized Hacks . | . . . Terminals . | . . . Fabricators . | . . . Repair Stations . | . . . Recycling Units . | . . . Scanalyzers . | . . . Garrison Access . | . . . Data Cores Recovered . | . . . Used . | . . . Hacking Detections 3 | . 2 1 Full Trace Events 2 | . 1 1 Feedback Events . | . . . Feedback Blocked . | . . . Robot Schematics Acquired . | . . . Robots Built . | . . . Authchips . | . . . Time . | . . . Total Robot Build Rating . | . . . Part Schematics Acquired . | . . . Parts Built . | . . . Authchips . | . . . Time . | . . . Total Part Build Rating . | . . . Parts Repaired . | . . . Time . | . . . Parts Recycled . | . . . Recycled Matter . | . . . Retrieved Matter . | . . . Retrieved Components . | . . . Parts Scanalyzed . | . . . Part Schematics Acquired . | . . . Parts Damaged . | . . . Bothacking | -11 -10 -9 ------------ Run | Yrd Mat Mat Used RIF Installer . | . . . Robots Hacked . | . . . Non-combat . | . . . Combat . | . . . Robot Hacks Applied . | . . . Relay Couplers Released . | . . . Fabnet Peak Effective % . | . . . Robots Rewired . | . . . Allies Hacked . | . . . Hacks Repelled . | . . . Allies | -11 -10 -9 -------- Run | Yrd Mat Mat Total Allies . | . . . Largest Group . | . . . Highest-Rated Group . | . . . Highest-Rated Ally . | . . . Total Orders . | . . . Ally Attacks . | . . . Total Damage . | . . . Kills . | . . . Allies Corrupted . | . . . Allies Melted . | . . . Intel | -11 -10 -9 ------- Run | Yrd Mat Mat Robot Analysis Total . | . . . Derelict Logs Recovered . | . . . Drone Launches . | . . . Drone Recoveries . | . . . Exploration | -11 -10 -9 ------------- Run | Yrd Mat Mat Turns Passed 1013 | 44 554 415 Spaces Moved 485 | 36 290 159 Core 45 | 10 35 . Treads 81 | . 31 50 Legs 130 | . 21 109 Wheels 229 | 26 203 . Hover . | . . . Flight . | . . . Fastest Speed 50 | 50 100 120 Average Speed 141 | 86 127 179 Slowest Speed 350 | 100 350 260 Overloaded Moves . | . . . Propulsion Burnouts . | . . . Robots Hopped . | . . . Cave-ins Triggered . | . . . Exploration Rate (%) 22 | 4 46 17 Regions Visited 2 Branch Regions . Pre-discovered Areas . | . . . Known Exits Taken 1 | . 1 . Unknown Exits Taken 1 | 1 . . Scrap Searched . | . . . Spaces Dug . | . . . Terrain Destroyed 96 | . 57 39 Melee . | . . . Projectile . | . . . AOE 96 | . 57 39 Terrain Rammed . | . . . Walls Destroyed . | . . . Machines Disabled . | . . . Actions | -11 -10 -9 --------- Run | Yrd Mat Mat Total 726 | 48 444 234 Wait 126 | . 106 20 Move 483 | 35 289 159 Hop . | . . . Pick Up 30 | 7 17 6 Fast Attach 4 | 1 . 3 Attach 16 | 5 11 . Detach . | . . . Swap 13 | . 3 10 Drop 5 | . 1 4 Fire 48 | . 16 32 Melee . | . . . Ram 1 | . 1 . Kick . | . . . Crush . | . . . Escape Stasis . | . . . Rewire . | . . . Trap . | . . . Miscellaneous . | . . . Route ------- -11/Scrapyard -10/Materials (discovered 4 exits: *Mat x3 / Min) -9/Materials History --------- Turn | Location | Event 8 | -11/Scrapyard | Discovered new exit (range 16) 45 | -11/Scrapyard | Entered Materials 73 | -10/Materials | Identified exit to Mines 73 | -10/Materials | Identified exit to Materials 319 | -10/Materials | Build established: Mutant 599 | -10/Materials | Entered another Materials area 599 | -9/Materials | Evolved 2 slots: Utility x2 1014 | -9/Materials | Self-destructed Last Messages --------------- Beam Rifle. 00981_ M-13 Machinist repairs Y-45 Defender. 00987_ M-13 Machinist fits Backup Laser I on Y-45 Defender. 00988_ Y-45 Defender heat damages Heat Sink, Imp. Ion Engine, Lgt. Treads. 00989_ Y-45 Defender heat spikes uncontrollably. 00990_ Y-45 Defender heat short circuits Lgt. Treads. 00990_ Destroyed Lgt. Armor Plating. 00990_ R-06 Scavenger collects Wheel. 00992_ Y-45 Defender heat short circuits Backup Laser I. 00992_ Acquired 50 matter. 00993_ Y-45 Defender heat damages Broken Backup Laser I. 00994_ Y-45 Defender destroyed. 00998_ Acquired 38 matter. 01003_ The unstable cave ceiling collapses. 01005_ U-05 Engineer lays Concrete. 01009_ R-06 Scavenger destroyed. 01009_ Destroyed Heat Sink. 01009_ Destroyed Lgt. Ion Engine. 01011_ Aluminum Leg destroyed. 01012_ The unstable cave ceiling collapses. Map ----- +----------------------------------------------------+ | ???????????????????????????????????# *[#= #??? | | ???????????????????????????????????# #[ #??? | | ???????????????????????????????????######## #??? | | ???????????????????????????????????# """ # #### | | ???????????????????????????????????# """ # # | | ???????????????????????????????????# """ # # " | | ???????????????????????????????????# + # " | | ???????????????????????????????????# # # " | | ???????????????????????????????????# []# + | | ???????????????????????????????????######## # | | ??????????????????????????????????????????# # | | ???????????????????????????????????######## # | | ???????????????????????????? #### | | ?????????????????????????????????########## #??? | | ?????????????????????????????????# # #??? | | ??????????????????????? #?? ?????# # #??? | | ????????????????????????+ """????# [! # #??? | | ????????????????????????# "R ????# ! # #??? | | ????????????????????????# """????# != # #??? | | ????????????????????????# ????# # #??? | | ????????????????????????# ????# + #??? | | ???????????????????????## ????# # #??? | | ??????????????????????### ????# # #??? | | ?????????????????????## #######??########## ##?? | | ?????????????????????# ############ #?? | | ????????????????????### @ #?? | | ????????????????????# l T #?? | | ????????????????????### #?? | | ?????????????????????# # ############ #?? | | ?????????????????????# g g # #?????????#######?? | | ?????????????????????## %%%! ????????????????? | | ?????????????????????? = ??????????????? | | ???????????????????? """ """ ????????????? | | ?????????????????? # """ "?" ????????????? | | ????????????????? # """ ""??????????????? | | ????????????????? # ? ???????????????? | | ???????????????? ??????????????????? | | ???????????????? u #+#??????????????????? | | ???????????????? ?????????????????????? | | ?????????????????? ?????????????????????? | | ???????????????????? ?????????????????????? | | ??????????????????????? ?????????????????????? | | ?????????????????????????????????????????????????? | | ?????????????????????????????????????????????????? | | ?????????????????????????????????????????????????? | | ?????????????????????????????????????????????????? | | ?????????????????????????????????????????????????? | | ?????????????????????????????????????????????????? | | ?????????????????????????????????????????????????? | | ?????????????????????????????????????????????????? | +----------------------------------------------------+ Best States ------------- Heat Dissipation 28 Energy Generation 10 Energy Capacity 450 Matter Stores 300 Matter Capacity 300 Sight Range 16 Terrain Scan Density 10 Evasion (%) 55 Recoil Reduction 2 Item Schematics ----------------- None Robot Schematics ------------------ None Fabricated ------------ Nothing Alien Tech Used ----------------- None Achievements -------------- root@ Challenges ------------ None Game ------ Seed SchematicSapperSteel Manual? 0 Play Time 00:20:04 Cumulative 7.4 hours Start 2024.05.03 @ 16:35:32 End 2024.05.03 @ 16:54:32 Sessions 1 Manual Loads 0 Difficulty Rogue Special Mode None Game No. 5 Rogue 5 Adventurer 0 Explorer 0 Win Type - Total 0 Types 0/0/0/0/0/0/0/0/0 Lore% 2 Gallery% 9 Achievement% 9 Wizard Run 0 Options --------- Layout 0 ASCII 0 Keyboard 0 Movement Mouse Keybinds 0 Fullscreen 1 Font 18/SmallcapsGlow Map View 38x25 Zoom Use 100% Tactical HUD 1 Map Filters NONE Filters NONE Steam 0 RUN: 49beb09c-e61b-47f1-bb0f-7e917786cc0e